fUSD/lending_fUSD_20241004
["ID","MTS","AMOUNT","RATE_DAILY","PERIOD"]
[339831740,1728052277904,-500.0,0.0003863,120]
[339831741,1728052277914,-500.0,0.0003863,120]
[339831742,1728052277924,-500.0,0.0003863,120]
[339831743,1728052277933,-500.0,0.0003863,120]
[339831744,1728052277943,-500.0,0.0003863,120]
[339831745,1728052277952,-3218.69,0.0003863,120]
[339831746,1728052277961,-500.0,0.0003863,120]
[339831747,1728052277971,-500.0,0.0003863,120]
[339831748,1728052277981,-500.0,0.0003863,120]
[339831749,1728052277994,-500.0,0.0003863,120]
[339831750,1728052278003,-970.53,0.0003863,120]
[339831751,1728052278014,-500.0,0.0003863,120]
[339831752,1728052278023,-964.0,0.0003863,120]
[339831753,1728052278033,-500.0,0.0003863,120]
[339831754,1728052278043,-623.3,0.0003863,120]
[339831755,1728052278053,-500.0,0.0003863,120]
[339831756,1728052278063,-1335.89,0.0003863,120]
[339831757,1728052278073,-500.0,0.0003863,120]
[339831758,1728052278082,-770.71,0.0003863,120]
[339831759,1728052278092,-1460.22,0.0003863,120]
[339831760,1728052278101,-500.0,0.0003863,120]
[339831761,1728052278111,-500.0,0.0003863,120]
[339831762,1728052278120,-1654.84,0.0003863,120]
[339831763,1728052278131,-4976.51,0.0003863,120]
[339831764,1728052278140,-250.78,0.0003863,120]
[339831765,1728052278149,-500.0,0.0003863,120]
[339831766,1728052278159,-932.62,0.0003863,120]
[339831767,1728052278169,-500.0,0.0003863,120]
[339831768,1728052278179,-501.23957912,0.0003863,120]
[339831769,1728052278188,-733.59,0.0003863,120]
[339831770,1728052278198,-500.0,0.0003863,120]
[339831771,1728052278207,-11036.81,0.0003863,120]
[339831772,1728052278217,-500.0,0.0003863,120]
[339831773,1728052278226,-500.0,0.0003863,120]
[339831774,1728052278236,-1867.11,0.0003863,120]
[339831775,1728052278248,-500.0,0.0003863,120]
[339831776,1728052278258,-500.0,0.0003863,120]
[339831777,1728052278267,-500.0,0.0003863,120]
[339831778,1728052278278,-2395.29,0.0003863,120]
[339831779,1728052278288,-500.0,0.0003863,120]
[339831780,1728052278298,-1311.12,0.0003863,120]
[339831781,1728052278307,-500.0,0.0003863,120]
[339831782,1728052278317,-500.0,0.0003863,120]
[339831783,1728052278326,-538.86,0.0003863,120]
[339831784,1728052278335,-1321.64,0.0003863,120]
[339831785,1728052278346,-500.0,0.0003863,120]
[339831786,1728052278355,-500.0,0.0003863,120]
[339831787,1728052278365,-500.0,0.0003863,120]
[339831788,1728052278374,-500.0,0.0003863,120]
[339831789,1728052278383,-500.0,0.0003863,120]
[339831790,1728052278393,-500.0,0.0003863,120]
[339831791,1728052278402,-686.82,0.0003863,120]
[339831792,1728052278412,-1288.59,0.0003863,120]
[339831793,1728052278422,-500.0,0.0003863,120]
[339831794,1728052278431,-500.0,0.0003863,120]
[339831795,1728052278441,-500.0,0.0003863,120]
[339831796,1728052278451,-1800.34,0.0003863,120]
[339831797,1728052278460,-500.0,0.0003863,120]
[339831798,1728052278470,-515.64086641,0.0003863,120]
[339831799,1728052278479,-500.0,0.0003863,120]
[339831800,1728052278489,-845.07,0.0003863,120]
[339831801,1728052278500,-500.0,0.0003863,120]
[339831802,1728052278510,-500.0,0.0003863,120]
[339831803,1728052278520,-6995.81,0.0003863,120]
[339831804,1728052278529,-500.0,0.0003863,120]
[339831805,1728052278539,-1469.35,0.0003863,120]
[339831806,1728052278549,-1052.81,0.0003863,120]
[339831807,1728052278558,-500.0,0.0003863,120]
[339831808,1728052278567,-500.0,0.0003863,120]
[339831809,1728052278577,-1253.47,0.0003863,120]
[339831810,1728052278586,-500.0,0.0003863,120]
[339831811,1728052278596,-500.0,0.0003863,120]
[339831812,1728052278605,-500.0,0.0003863,120]
[339831813,1728052278614,-500.0,0.0003863,120]
[339831814,1728052278624,-500.0,0.0003863,120]
[339831815,1728052278634,-500.0,0.0003863,120]
[339831816,1728052278643,-499.0947924,0.0003863,30]
[339831817,1728052278654,-500.0,0.0003863,120]
[339831818,1728052278663,-500.0,0.0003863,120]
[339831819,1728052278673,-500.0,0.0003863,120]
[339831820,1728052278682,-500.0,0.0003863,120]
[339831821,1728052278691,-507.47,0.0003863,120]
[339831822,1728052278701,-500.0,0.0003863,120]
[339831823,1728052278711,-500.0,0.0003863,120]
[339831824,1728052278721,-2611.3,0.0003863,120]
[339831825,1728052278731,-500.0,0.0003863,120]
[339831826,1728052278742,-604.27,0.0003863,120]
[339831827,1728052278754,-500.0,0.0003863,120]
[339831828,1728052278772,-378.80174873,0.0003863,120]
[339831829,1728052278781,-500.0,0.0003863,120]
[339831830,1728052278791,-500.0,0.0003863,120]
[339831831,1728052278801,-2230.01,0.0003863,120]
[339831832,1728052278811,-500.0,0.0003863,120]
[339831833,1728052278820,-646.77,0.0003863,120]
[339831834,1728052278830,-500.0,0.0003863,120]
[339831835,1728052278840,-500.0,0.0003863,120]
[339831836,1728052278850,-500.0,0.0003863,120]
[339831837,1728052278860,-500.0,0.0003863,120]
[339831838,1728052278870,-500.0,0.0003863,120]
[339831839,1728052278881,-500.0,0.0003863,120]
[339831840,1728052278891,-514.91,0.0003863,120]
[339831841,1728052278901,-500.0,0.0003863,120]
[339831842,1728052278911,-1404.49,0.0003863,120]
[339831843,1728052278920,-500.0,0.0003863,120]
[339831844,1728052278930,-500.0,0.0003863,120]
[339831845,1728052278940,-500.0,0.0003863,120]
[339831846,1728052278950,-500.0,0.0003863,120]
[339831847,1728052278960,-606.88,0.0003863,120]
[339831848,1728052278970,-1303.53,0.0003863,120]
[339831849,1728052278980,-500.0,0.0003863,120]
[339831850,1728052278993,-500.0,0.0003863,120]
[339831851,1728052279005,-500.0,0.0003863,120]
[339831852,1728052279015,-500.0,0.0003863,120]
[339831853,1728052279024,-500.0,0.0003863,120]
[339831854,1728052279034,-500.0,0.0003863,120]
[339831855,1728052279044,-1093.31,0.0003863,120]
[339831856,1728052279054,-1530.35,0.0003863,120]
[339831857,1728052279064,-1190.32,0.0003863,120]
[339831858,1728052279074,-500.0,0.0003863,120]
[339831859,1728052279084,-333.6088349,0.0003863,120]
[339831860,1728052279093,-500.0,0.0003863,120]
[339831861,1728052279103,-500.0,0.0003863,120]
[339831862,1728052279112,-500.0,0.0003863,120]
[339831863,1728052279121,-765.62,0.0003863,120]
[339831864,1728052279131,-625.05,0.0003863,120]
[339831865,1728052279140,-500.0,0.0003863,120]
[339831866,1728052279150,-500.0,0.0003863,120]
[339831867,1728052279160,-500.0,0.0003863,120]
[339831868,1728052279169,-500.0,0.0003863,7]
[339831869,1728052279179,-500.0,0.0003863,120]
[339831870,1728052279188,-300.0,0.0003863,120]
[339831871,1728052279197,-500.0,0.0003863,120]
[339831872,1728052279208,-1163.76,0.0003863,120]
[339831873,1728052279218,-500.0,0.0003863,120]
[339831874,1728052279227,-500.0,0.0003863,120]
[339831875,1728052279237,-500.0,0.0003863,120]
[339831876,1728052279249,-2290.51,0.0003863,120]
[339831877,1728052279259,-500.0,0.0003863,120]
[339831878,1728052279268,-637.05505738,0.0003863,120]
[339831879,1728052279280,-500.0,0.0003863,120]
[339831880,1728052279289,-649.86,0.0003863,120]
[339831881,1728052279299,-500.0,0.0003863,120]
[339831882,1728052279308,-716.37,0.0003863,120]
[339831883,1728052279319,-500.0,0.0003863,120]
[339831884,1728052279328,-500.0,0.0003863,120]
[339831885,1728052279338,-500.0,0.0003863,120]
[339831886,1728052279349,-500.0,0.0003863,120]
[339831887,1728052279359,-500.0,0.0003863,120]
[339831888,1728052279368,-500.0,0.0003863,120]
[339831889,1728052279378,-500.0,0.0003863,120]
[339831890,1728052279387,-3503.34,0.0003863,120]
[339831891,1728052279396,-500.0,0.0003863,120]
[339831892,1728052279406,-500.0,0.0003863,120]
[339831893,1728052279415,-500.0,0.0003863,120]
[339831894,1728052279425,-500.0,0.0003863,120]
[339831895,1728052279435,-500.0,0.0003863,120]
[339831896,1728052279445,-5035.5,0.0003863,120]
[339831897,1728052279454,-1925.44,0.0003863,120]
[339831898,1728052279463,-500.0,0.0003863,120]
[339831899,1728052279472,-7070.31,0.0003863,120]
[339831900,1728052279481,-500.0,0.0003863,120]
[339831901,1728052279492,-500.0,0.0003863,120]
[339831902,1728052279502,-1047.78,0.0003863,120]
[339831903,1728052279511,-500.0,0.0003863,120]
[339831904,1728052279521,-500.0,0.0003863,120]
[339831905,1728052279532,-658.7,0.0003863,120]
[339831906,1728052279541,-500.0,0.0003863,120]
[339831907,1728052279551,-500.0,0.0003863,120]
[339831908,1728052279561,-500.0,0.0003863,120]
[339831909,1728052279570,-4318.76,0.0003863,120]
[339831910,1728052279580,-500.0,0.0003863,120]
[339831911,1728052279589,-500.0,0.0003863,120]
[339831912,1728052279599,-500.0,0.0003863,120]
[339831913,1728052279609,-500.0,0.0003863,120]
[339831914,1728052279618,-1963.01,0.0003863,120]
[339831915,1728052279637,-500.0,0.0003863,120]
[339831916,1728052279647,-500.0,0.0003863,30]
[339831917,1728052279656,-500.0,0.0003863,120]
[339831918,1728052279666,-1732.87,0.0003863,120]
[339831919,1728052279675,-500.0,0.0003863,120]
[339831920,1728052279685,-500.0,0.0003863,120]
[339831921,1728052279695,-500.0,0.0003863,120]
[339831922,1728052279704,-500.0,0.0003863,120]
[339831923,1728052279714,-500.0,0.0003863,120]
[339831924,1728052279723,-500.0,0.0003863,120]
[339831925,1728052279733,-500.0,0.0003863,120]
[339831926,1728052279945,-500.0,0.0003863,120]
[339831927,1728052279955,-500.0,0.0003863,120]
[339831928,1728052279964,-500.0,0.0003863,120]
[339831929,1728052279974,-500.0,0.0003863,120]
[339831930,1728052279983,-500.0,0.0003863,120]
[339831931,1728052279996,-500.0,0.0003863,120]
[339831932,1728052280007,-500.0,0.0003863,16]
[339831933,1728052280016,-820.76,0.0003863,120]
[339831934,1728052280025,-500.0,0.0003863,120]
[339831935,1728052280035,-2184.74,0.0003863,120]
[339831936,1728052280044,-634.24,0.0003863,120]
[339831937,1728052280053,-500.0,0.0003863,120]
[339831938,1728052280063,-825.07,0.0003863,120]
[339831939,1728052280073,-3611.87,0.0003863,120]
[339831940,1728052280083,-500.0,0.0003863,120]
[339831941,1728052280092,-1967.11,0.0003863,120]
[339831942,1728052280101,-1805.1,0.0003863,120]
[339831943,1728052280111,-3035.24,0.0003863,120]
[339831944,1728052280121,-511.74,0.0003863,120]
[339831945,1728052280130,-500.0,0.0003863,120]
[339831946,1728052280140,-500.0,0.0003863,120]
[339831947,1728052280149,-500.0,0.0003863,120]
[339831948,1728052280159,-500.0,0.0003863,120]
[339831949,1728052280168,-500.0,0.0003863,120]
[339831950,1728052280178,-560.83,0.0003863,120]
[339831951,1728052280187,-500.0,0.0003863,120]
[339831952,1728052280197,-500.0,0.0003863,120]
[339831953,1728052280207,-1582.94,0.0003863,120]
[339831954,1728052280216,-5880.09,0.0003863,120]
[339831955,1728052280226,-1065.36,0.0003863,120]
[339831956,1728052280235,-1564.74,0.0003863,120]
[339831957,1728052280249,-500.0,0.0003863,120]
[339831958,1728052280258,-585.19995094,0.0003863,120]
[339831959,1728052280267,-500.0,0.0003863,120]
[339831960,1728052280278,-4434.66,0.0003863,120]
[339831961,1728052280289,-840.82,0.0003863,120]
[339831962,1728052280298,-500.0,0.0003863,120]
[339831963,1728052280307,-778.93,0.0003863,120]
[339831964,1728052280316,-500.0,0.0003863,120]
[339831965,1728052280326,-1115.42,0.0003863,120]
[339831966,1728052280335,-500.0,0.0003863,120]
[339831967,1728052280345,-1167.3,0.0003863,120]
[339831968,1728052280354,-500.0,0.0003863,120]
[339831969,1728052280363,-500.0,0.0003863,120]
[339831970,1728052280373,-500.0,0.0003863,120]
[339831971,1728052280383,-641.17,0.0003863,120]
[339831972,1728052280392,-1034.46,0.0003863,120]
[339831973,1728052280401,-500.0,0.0003863,120]
[339831974,1728052280411,-500.0,0.0003863,120]
[339831975,1728052280420,-500.0,0.0003863,120]
[339831976,1728052280431,-640.61,0.0003863,120]
[339831977,1728052280440,-541.94,0.0003863,120]
[339831978,1728052280449,-500.0,0.0003863,2]
[339831979,1728052280459,-500.0,0.0003863,120]
[339831980,1728052280468,-500.0,0.0003863,120]
[339831981,1728052280477,-500.0,0.0003863,120]
[339831982,1728052280486,-500.0,0.0003863,120]
[339831983,1728052280499,-500.0,0.0003863,120]
[339831984,1728052280508,-973.61,0.0003863,120]
[339831985,1728052280517,-500.0,0.0003863,120]
[339831986,1728052280527,-1034.57,0.0003863,120]
[339831987,1728052280536,-500.0,0.0003863,120]
[339831988,1728052280546,-500.0,0.0003863,120]
[339831989,1728052280555,-500.0,0.0003863,2]
[339831990,1728052280565,-601.52631012,0.0003863,120]
[339831991,1728052280574,-500.0,0.0003863,120]
[339831992,1728052280583,-9952.7,0.0003863,120]
[339831993,1728052280592,-500.0,0.0003863,120]
[339831994,1728052280602,-500.0,0.0003863,120]
[339831995,1728052280611,-2401.59,0.0003863,120]
[339831996,1728052280621,-665.23,0.0003863,120]
[339831997,1728052280632,-503.06,0.0003863,120]
[339831998,1728052280641,-500.0,0.0003863,120]
[339831999,1728052280651,-1417.36,0.0003863,120]
[339832000,1728052280660,-500.0,0.0003863,120]
[339832001,1728052280670,-500.0,0.0003863,120]
[339832002,1728052280680,-500.0,0.0003863,120]
[339832003,1728052280690,-500.0,0.0003863,120]
[339832004,1728052280699,-1278.94,0.0003863,120]
[339832005,1728052280709,-500.0,0.0003863,120]
[339832006,1728052280718,-500.0,0.0003863,120]
[339832007,1728052280729,-500.0,0.0003863,120]
[339832008,1728052280738,-500.0,0.0003863,120]
[339832009,1728052280749,-500.0,0.0003863,120]
[339832010,1728052280758,-603.38081934,0.0003863,120]
[339832011,1728052280768,-666.8,0.0003863,120]
[339832012,1728052280778,-500.0,0.0003863,120]
[339832013,1728052280787,-500.0,0.0003863,120]
[339832014,1728052280797,-500.0,0.0003863,120]
[339832015,1728052280806,-1288.99,0.0003863,120]
[339832016,1728052280816,-5537.59,0.0003863,120]
[339832017,1728052280826,-694.07,0.0003863,120]
[339832018,1728052280835,-1883.94,0.0003863,120]
[339832019,1728052280845,-377.37291564,0.0003863,120]
[339832020,1728052280854,-500.0,0.0003863,120]
[339832021,1728052280864,-935.01,0.0003863,120]
[339832022,1728052280873,-500.0,0.0003863,120]
[339832023,1728052280882,-500.0,0.0003863,120]
[339832024,1728052280891,-500.0,0.0003863,120]
[339832025,1728052280901,-1656.57,0.0003863,120]
[339832026,1728052280911,-500.0,0.0003863,120]
[339832027,1728052280920,-755.83,0.0003863,120]
[339832028,1728052280930,-500.0,0.0003863,120]
[339832029,1728052280940,-500.0,0.0003863,120]
[339832030,1728052280949,-500.0,0.0003863,120]
[339832031,1728052280958,-823.41,0.0003863,120]
[339832032,1728052280967,-500.0,0.0003863,120]
[339832033,1728052280977,-500.0,0.0003863,120]
[339832034,1728052280986,-742.99,0.0003863,120]
[339832035,1728052280999,-1000.73890271,0.000387,120]
[339832036,1728052281019,-600.0,0.00038712,7]
[339832037,1728052281036,-500.0,0.00038712,7]
[339832038,1728052281057,-500.0,0.00038712,7]
[339832039,1728052281076,-150.0,0.00038719,120]
[339832040,1728052281096,-205.0,0.0003877,2]
[339832041,1728052281115,-233.100417,0.00038798,120]
[339832042,1728052281135,-437.14144949,0.00038804,2]
[339832043,1728052281155,-1638.25814047,0.00038868,30]
[339832044,1728052281173,-2206.77672807,0.00038868,30]
[339832045,1728052281191,-2575.56839506,0.00038868,30]
[339832046,1728052281205,-150.0,0.00038874,120]
[339832047,1728052281220,-900.0,0.000389,14]
[339832048,1728052281234,-1990.48022138,0.00038904,21]
[339832049,1728052281251,-155.48182,0.00038904,120]
[339832050,1728052281268,-150.159144,0.00038904,120]
[339832051,1728052281287,-500.0,0.00038904,120]
[339832052,1728052281308,-500.0,0.00038904,120]
[339832053,1728052281322,-500.0,0.00038904,120]
[339832054,1728052281337,-500.0,0.00038904,120]
[339832055,1728052281352,-506.40825994,0.00038904,120]
[339832056,1728052281367,-500.0,0.00038904,120]
[339832057,1728052281381,-435.94138599,0.00038904,120]
[339832058,1728052281396,-500.0,0.00038904,120]
[339832059,1728052281410,-500.0,0.00038904,120]
[339832060,1728052281425,-500.0,0.00038904,120]
[339832061,1728052281439,-500.0,0.00038904,120]
[339832062,1728052281454,-500.0,0.00038904,120]
[339832063,1728052281468,-500.0,0.00038904,120]
[339832064,1728052281482,-500.0,0.00038904,120]
[339832065,1728052281496,-500.0,0.00038904,120]
[339832066,1728052281510,-500.0,0.00038904,120]
[339832067,1728052281525,-500.0,0.00038904,120]
[339832068,1728052281539,-500.0,0.00038904,120]
[339832069,1728052281553,-500.0,0.00038904,120]
[339832070,1728052281568,-502.38402803,0.00038904,120]
[339832071,1728052281582,-500.0,0.00038904,120]
[339832072,1728052281597,-500.0,0.00038904,120]
[339832073,1728052281610,-500.0,0.00038904,120]
[339832074,1728052281625,-500.0,0.00038904,120]
[339832075,1728052281639,-500.0,0.00038904,120]
[339832076,1728052281661,-500.0,0.00038904,120]
[339832077,1728052281681,-500.0,0.00038904,120]
[339832078,1728052281701,-500.0,0.00038904,120]
[339832079,1728052281720,-500.0,0.00038904,30]
[339832080,1728052281738,-500.0,0.00038904,120]
[339832081,1728052281756,-500.0,0.00038904,120]
[339832082,1728052281773,-500.0,0.00038904,120]
[339832083,1728052281790,-500.0,0.00038904,120]
[339832084,1728052281806,-500.0,0.00038904,120]
[339832085,1728052281821,-500.0,0.00038904,120]
[339832086,1728052281838,-500.0,0.00038904,120]
[339832087,1728052281853,-500.0,0.00038904,120]
[339832088,1728052281870,-500.0,0.00038904,120]
[339832089,1728052281884,-1279.35,0.00038904,120]
[339832090,1728052281899,-648.60672317,0.00038904,120]
[339832091,1728052281914,-500.0,0.00038904,120]
[339832092,1728052281933,-500.0,0.00038904,120]
[339832093,1728052281947,-500.0,0.00038904,120]
[339832094,1728052281961,-686.46,0.00038904,120]
[339832095,1728052281976,-500.0,0.00038904,120]
[339832096,1728052281992,-500.0,0.00038904,120]
[339832097,1728052282011,-403.50719485,0.00038904,120]
[339832098,1728052282025,-523.99,0.00038904,120]
[339832099,1728052282039,-502.28834549,0.00038904,120]
[339832100,1728052282054,-500.0,0.00038904,120]
[339832101,1728052282069,-501.16960818,0.00038904,120]
[339832102,1728052282083,-500.0,0.00038904,120]
[339832103,1728052282098,-500.0,0.00038904,120]
[339832104,1728052282113,-500.0,0.00038904,120]
[339832105,1728052282128,-694.3,0.00038904,120]
[339832106,1728052282142,-500.0,0.00038904,120]
[339832107,1728052282157,-500.0,0.00038904,120]
[339832108,1728052282172,-511.92,0.00038904,120]
[339832109,1728052282187,-500.0,0.00038904,120]
[339832110,1728052282201,-500.0,0.00038904,120]
[339832111,1728052282216,-500.0,0.00038904,120]
[339832112,1728052282230,-224.47012517,0.00038904,120]
[339832113,1728052282247,-502.66921603,0.00038904,120]
[339832114,1728052282261,-500.0,0.00038904,120]
[339832115,1728052282276,-500.0,0.00038904,120]
[339832116,1728052282296,-500.0,0.00038904,120]
[339832117,1728052282312,-500.0,0.00038904,120]
[339832118,1728052282328,-500.0,0.00038904,120]
[339832119,1728052282343,-571.19,0.00038904,7]
[339832120,1728052282358,-500.0,0.00038904,120]
[339832121,1728052282373,-500.0,0.00038904,120]
[339832122,1728052282388,-500.0,0.00038904,120]
[339832123,1728052282403,-500.0,0.00038904,120]
[339832124,1728052282419,-500.0,0.00038904,120]
[339832125,1728052282433,-500.0,0.00038904,120]
[339832126,1728052282447,-500.0,0.00038904,120]
[339832127,1728052282462,-500.0,0.00038904,120]
[339832128,1728052282479,-500.0,0.00038904,120]
[339832129,1728052282494,-500.0,0.00038904,120]
[339832130,1728052282509,-500.0,0.00038904,120]
[339832131,1728052282522,-500.0,0.00038904,120]
[339832132,1728052282537,-626.02,0.00038904,120]
[339832133,1728052282551,-500.0,0.00038904,120]
[339832134,1728052282565,-500.0,0.00038904,120]
[339832135,1728052282580,-500.0,0.00038904,120]
[339832136,1728052282595,-758.01,0.00038904,120]
[339832137,1728052282610,-500.0,0.00038904,120]
[339832138,1728052282624,-500.0,0.00038904,120]
[339832139,1728052282638,-500.0,0.00038904,120]
[339832140,1728052282653,-2079.16,0.00038904,120]
[339832141,1728052282667,-500.0,0.00038904,120]
[339832142,1728052282681,-555.19,0.00038904,120]
[339832143,1728052282695,-571.51,0.00038904,120]
[339832144,1728052282921,-500.0,0.00038904,120]
[339832145,1728052282952,-500.0,0.00038904,120]
[339832146,1728052282962,-500.0,0.00038904,120]
[339832147,1728052282971,-500.0,0.00038904,120]
[339832148,1728052282980,-500.0,0.00038904,120]
[339832149,1728052282991,-500.0,0.00038904,120]
[339832150,1728052283001,-500.0,0.00038904,120]
[339832151,1728052283011,-500.0,0.00038904,120]
[339832152,1728052283020,-500.0,0.00038904,120]
[339832153,1728052283029,-500.0,0.00038904,120]
[339832154,1728052283039,-500.0,0.00038904,120]
[339832155,1728052283048,-500.0,0.00038904,120]
[339832156,1728052283057,-500.0,0.00038904,120]
[339832157,1728052283066,-612.16,0.00038904,120]
[339832158,1728052283075,-500.0,0.00038904,120]
[339832159,1728052283084,-1560.63,0.00038904,120]
[339832160,1728052283094,-500.0,0.00038904,120]
[339832161,1728052283103,-500.0,0.00038904,120]
[339832162,1728052283112,-500.0,0.00038904,120]
[339832163,1728052283121,-883.27,0.00038904,120]
[339832164,1728052283131,-500.0,0.00038904,120]
[339832165,1728052283140,-500.0,0.00038904,120]
[339832166,1728052283150,-500.0,0.00038904,120]
[339832167,1728052283159,-586.05,0.00038904,120]
[339832168,1728052283169,-500.0,0.00038904,120]
[339832169,1728052283179,-500.0,0.00038904,120]
[339832170,1728052283188,-500.0,0.00038904,120]
[339832171,1728052283198,-500.0,0.00038904,120]
[339832172,1728052283206,-500.0,0.00038904,120]
[339832173,1728052283215,-500.0,0.00038904,120]
[339832174,1728052283225,-500.0,0.00038904,120]
[339832175,1728052283234,-500.0,0.00038904,120]
[339832176,1728052283246,-500.0,0.00038904,120]
[339832177,1728052283255,-500.0,0.00038904,120]
[339832178,1728052283264,-500.0,0.00038904,120]
[339832179,1728052283273,-500.0,0.00038904,120]
[339832180,1728052283284,-500.0,0.00038904,120]
[339832181,1728052283294,-500.0,0.00038904,120]
[339832182,1728052283303,-500.0,0.00038904,120]
[339832183,1728052283312,-623.92,0.00038904,120]
[339832184,1728052283322,-500.0,0.00038904,120]
[339832185,1728052283331,-790.33,0.00038904,120]
[339832186,1728052283340,-500.0,0.00038904,120]
[339832187,1728052283349,-500.0,0.00038904,120]
[339832188,1728052283358,-500.0,0.00038904,120]
[339832189,1728052283367,-533.77,0.00038904,120]
[339832190,1728052283376,-500.0,0.00038904,120]
[339832191,1728052283386,-500.0,0.00038904,120]
[339832192,1728052283396,-500.0,0.00038904,120]
[339832193,1728052283405,-500.0,0.00038904,120]
[339832194,1728052283416,-500.0,0.00038904,120]
[339832195,1728052283425,-500.0,0.00038904,120]
[339832196,1728052283434,-500.0,0.00038904,120]
[339832197,1728052283444,-500.0,0.00038904,120]
[339832198,1728052283453,-500.0,0.00038904,120]
[339832199,1728052283465,-500.0,0.00038904,120]
[339832200,1728052283475,-741.16,0.00038904,120]
[339832201,1728052283484,-500.0,0.00038904,120]
[339832202,1728052283496,-500.0,0.00038904,120]
[339832203,1728052283506,-500.0,0.00038904,120]
[339832204,1728052283515,-500.0,0.00038904,120]
[339832205,1728052283525,-500.0,0.00038904,120]
[339832206,1728052283538,-500.0,0.00038904,120]
[339832207,1728052283547,-500.0,0.00038904,120]
[339832208,1728052283557,-500.0,0.00038904,120]
[339832209,1728052283565,-500.0,0.00038904,120]
[339832210,1728052283575,-500.0,0.00038904,120]
[339832211,1728052283583,-500.0,0.00038904,120]
[339832212,1728052283593,-500.0,0.00038904,120]
[339832213,1728052283603,-500.0,0.00038904,120]
[339832214,1728052283613,-500.0,0.00038904,120]
[339832215,1728052283625,-500.0,0.00038904,120]
[339832216,1728052283635,-500.0,0.00038904,120]
[339832217,1728052283644,-805.8,0.00038904,120]
[339832218,1728052283654,-500.0,0.00038904,120]
[339832219,1728052283663,-500.0,0.00038904,120]
[339832220,1728052283673,-500.0,0.00038904,120]
[339832221,1728052283682,-705.12,0.00038904,120]
[339832222,1728052283692,-500.0,0.00038904,120]
[339832223,1728052283701,-500.0,0.00038904,120]
[339832224,1728052283711,-500.0,0.00038904,120]
[339832225,1728052283720,-500.0,0.00038904,120]
[339832226,1728052283729,-500.0,0.00038904,120]
[339832227,1728052283739,-500.0,0.00038904,120]
[339832228,1728052283751,-500.0,0.00038904,120]
[339832229,1728052283760,-500.0,0.00038904,120]
[339832230,1728052283769,-500.0,0.00038904,120]
[339832231,1728052283779,-500.0,0.00038904,120]
[339832232,1728052283788,-500.0,0.00038904,120]
[339832233,1728052283798,-500.0,0.00038904,120]
[339832234,1728052283807,-500.0,0.00038904,120]
[339832235,1728052283816,-500.0,0.00038904,120]
[339832236,1728052283826,-500.0,0.00038904,120]
[339832237,1728052283836,-680.56,0.00038904,120]
[339832238,1728052283845,-500.0,0.00038904,120]
[339832239,1728052283855,-500.0,0.00038904,120]